fUSD/lending_fUSD_20260521
["ID","MTS","AMOUNT","RATE_DAILY","PERIOD"]
[422765419,1779371825000,-500.0,0.00039483,120]
[422765420,1779371825000,-500.0,0.00039483,120]
[422765418,1779371825000,-500.0,0.00039483,120]
[422765411,1779371825000,-500.0,0.00039483,120]
[422765416,1779371825000,-627.02,0.00039483,120]
[422765415,1779371825000,-500.0,0.00039483,120]
[422765414,1779371825000,-500.0,0.00039483,120]
[422765417,1779371825000,-500.0,0.00039483,120]
[422765429,1779371826000,-559.57987998,0.00039483,120]
[422765424,1779371826000,-627.02,0.00039483,120]
[422765423,1779371826000,-500.0,0.00039483,120]
[422765426,1779371826000,-500.0,0.00039483,120]
[422765425,1779371826000,-183.01602055,0.00039483,120]
[422765427,1779371826000,-155.03221298,0.00039483,120]
[422765428,1779371826000,-627.02,0.00039483,120]
[422765430,1779371826000,-211.12627782,0.00039483,120]
[422765422,1779371826000,-500.0,0.00039483,120]
[422765431,1779371826000,-627.02,0.00039483,120]
[422765433,1779371826000,-274.04146913,0.00039483,120]
[422765434,1779371826000,-500.0,0.00039483,120]
[422765435,1779371826000,-408.97468713,0.00039483,120]
[422765436,1779371826000,-338.58707699,0.00039483,120]
[422765437,1779371826000,-500.0,0.00039483,120]
[422765438,1779371826000,-500.0,0.00039483,120]
[422765439,1779371826000,-500.0,0.00039483,120]
[422765440,1779371826000,-215.11435488,0.00039483,120]
[422765441,1779371826000,-555.28960839,0.00039483,120]
[422765432,1779371826000,-627.07500041,0.00039483,120]
[422765448,1779371827000,-500.0,0.00039483,120]
[422765449,1779371827000,-500.0,0.00039483,120]
[422765447,1779371827000,-272.00823533,0.00039483,120]
[422765442,1779371827000,-340.30135357,0.00039483,120]
[422765445,1779371827000,-500.0,0.00039483,120]
[422765443,1779371827000,-529.4873688,0.00039483,120]
[422765444,1779371827000,-166.28602094,0.00039483,120]
[422765446,1779371827000,-378.54569841,0.00039483,120]
[422765451,1779371827000,-571.17502294,0.00039483,120]
[422765452,1779371827000,-500.0,0.00039483,120]
[422765453,1779371827000,-500.0,0.00039483,120]
[422765460,1779371827000,-500.0,0.00039483,30]
[422765458,1779371827000,-206.84576508,0.00039483,120]
[422765459,1779371827000,-500.0,0.00039483,30]
[422765450,1779371827000,-500.0,0.00039483,120]
[422765456,1779371827000,-500.0,0.00039483,120]
[422765455,1779371827000,-426.1149314,0.00039483,120]
[422765454,1779371827000,-257.8341503,0.00039483,120]
[422765457,1779371827000,-276.34588866,0.00039483,120]
[422765462,1779371828000,-231.9255459,0.00039483,120]
[422765461,1779371828000,-500.0,0.00039483,30]
[422765463,1779371828000,-500.0,0.00039483,30]
[422765464,1779371828000,-500.0,0.00039483,30]
[422765465,1779371828000,-500.0,0.00039483,30]
[422765467,1779371828000,-500.0,0.00039483,120]
[422765469,1779371828000,-194.98514875,0.00039483,120]
[422765470,1779371828000,-554.41431452,0.00039483,120]
[422765466,1779371828000,-173.99921814,0.00039483,30]
[422765468,1779371828000,-500.0,0.00039483,120]
[422765472,1779371828000,-219.41188766,0.00039483,120]
[422765473,1779371828000,-213.9915436,0.00039483,120]
[422765474,1779371828000,-500.0,0.00039483,120]
[422765475,1779371828000,-271.1697436,0.00039483,120]
[422765477,1779371828000,-500.0,0.00039483,120]
[422765476,1779371828000,-273.31793109,0.00039483,120]
[422765479,1779371828000,-323.6888584,0.00039483,120]
[422765478,1779371828000,-218.0976278,0.00039483,120]
[422765471,1779371828000,-252.85590889,0.00039483,120]
[422765487,1779371829000,-630.23440888,0.00039483,120]
[422765486,1779371829000,-500.0,0.00039483,120]
[422765485,1779371829000,-500.0,0.00039483,120]
[422765488,1779371829000,-500.0,0.00039483,120]
[422765482,1779371829000,-500.0,0.00039483,120]
[422765483,1779371829000,-500.0,0.00039483,120]
[422765480,1779371829000,-500.0,0.00039483,120]
[422765484,1779371829000,-500.0,0.00039483,120]
[422765481,1779371829000,-500.0,0.00039483,120]
[422765489,1779371829000,-529.98247329,0.00039483,120]
[422765491,1779371829000,-1257.58,0.00039483,120]
[422765498,1779371829000,-1257.58,0.00039483,120]
[422765497,1779371829000,-500.0,0.00039483,120]
[422765499,1779371829000,-500.0,0.00039483,120]
[422765495,1779371829000,-500.0,0.00039483,120]
[422765490,1779371829000,-500.0,0.00039483,120]
[422765494,1779371829000,-1257.58,0.00039483,120]
[422765493,1779371829000,-500.0,0.00039483,120]
[422765492,1779371829000,-203.22926251,0.00039483,120]
[422765496,1779371829000,-1257.58,0.00039483,120]
[422765508,1779371830000,-517.73923283,0.00039483,120]
[422765501,1779371830000,-1257.58,0.00039483,120]
[422765502,1779371830000,-500.0,0.00039483,120]
[422765503,1779371830000,-1257.58,0.00039483,120]
[422765504,1779371830000,-500.0,0.00039483,120]
[422765506,1779371830000,-500.0,0.00039483,120]
[422765505,1779371830000,-1257.58,0.00039483,120]
[422765507,1779371830000,-1257.58,0.00039483,120]
[422765500,1779371830000,-240.01572761,0.00039483,120]
[422765509,1779371830000,-1257.58,0.00039483,120]
[422765512,1779371830000,-371.71436158,0.00039483,120]
[422765511,1779371830000,-1257.58,0.00039483,120]
[422765513,1779371830000,-1257.58,0.00039483,120]
[422765514,1779371830000,-211.89149152,0.00039483,120]
[422765515,1779371830000,-500.0,0.00039483,120]
[422765516,1779371830000,-1257.58,0.00039483,120]
[422765518,1779371830000,-1257.58,0.00039483,120]
[422765517,1779371830000,-343.82462839,0.00039483,120]
[422765510,1779371830000,-1257.58,0.00039483,120]
[422765526,1779371831000,-1257.58,0.00039483,120]
[422765525,1779371831000,-1257.58,0.00039483,120]
[422765523,1779371831000,-1257.58,0.00039483,120]
[422765520,1779371831000,-224.98252568,0.00039483,120]
[422765528,1779371831000,-1257.58,0.00039483,120]
[422765522,1779371831000,-1257.58,0.00039483,120]
[422765519,1779371831000,-1257.58,0.00039483,120]
[422765524,1779371831000,-1257.58,0.00039483,120]
[422765527,1779371831000,-1257.58,0.00039483,120]
[422765521,1779371831000,-1257.58,0.00039483,120]
[422765529,1779371831000,-280.59308494,0.00039483,120]
[422765538,1779371831000,-527.1074382,0.00039483,120]
[422765537,1779371831000,-222.50672645,0.00039483,120]
[422765535,1779371831000,-500.0,0.00039483,120]
[422765536,1779371831000,-293.49889586,0.00039483,120]
[422765530,1779371831000,-1257.78102522,0.00039483,120]
[422765534,1779371831000,-500.0,0.00039483,120]
[422765532,1779371831000,-500.0,0.00039483,120]
[422765531,1779371831000,-500.0,0.00039483,120]
[422765533,1779371831000,-500.0,0.00039483,120]
[422765539,1779371832000,-261.3110635,0.00039483,120]
[422765540,1779371832000,-184.32137281,0.00039483,120]
[422765541,1779371832000,-722.69,0.00039483,120]
[422765542,1779371832000,-722.69,0.00039483,120]
[422765543,1779371832000,-722.69,0.00039483,120]
[422765544,1779371832000,-522.98198621,0.00039483,120]
[422765545,1779371832000,-722.69,0.00039483,120]
[422765547,1779371832000,-500.0,0.00039483,120]
[422765548,1779371832000,-722.69,0.00039483,120]
[422765546,1779371832000,-722.69,0.00039483,120]
[422765550,1779371832000,-508.18877199,0.00039483,120]
[422765549,1779371832000,-722.69,0.00039483,120]
[422765558,1779371832000,-500.0,0.00039483,120]
[422765555,1779371832000,-500.0,0.00039483,120]
[422765556,1779371832000,-722.69,0.00039483,120]
[422765557,1779371832000,-500.0,0.00039483,120]
[422765554,1779371832000,-722.69,0.00039483,120]
[422765551,1779371832000,-722.69,0.00039483,120]
[422765552,1779371832000,-722.69,0.00039483,120]
[422765553,1779371832000,-500.0,0.00039483,120]
[422765568,1779371833000,-500.0,0.00039483,120]
[422765560,1779371833000,-722.69,0.00039483,120]
[422765559,1779371833000,-1547.28,0.00039483,120]
[422765562,1779371833000,-500.0,0.00039483,120]
[422765561,1779371833000,-500.0,0.00039483,120]
[422765564,1779371833000,-722.69,0.00039483,120]
[422765563,1779371833000,-500.0,0.00039483,120]
[422765565,1779371833000,-368.04067565,0.00039483,120]
[422765567,1779371833000,-722.69,0.00039483,120]
[422765566,1779371833000,-500.0,0.00039483,120]
[422765569,1779371833000,-500.0,0.00039483,120]
[422765578,1779371833000,-722.69,0.00039483,120]
[422765575,1779371833000,-506.59707858,0.00039483,120]
[422765576,1779371833000,-722.69,0.00039483,120]
[422765574,1779371833000,-722.69,0.00039483,120]
[422765570,1779371833000,-500.0,0.00039483,120]
[422765571,1779371833000,-722.69,0.00039483,120]
[422765577,1779371833000,-722.69,0.00039483,120]
[422765572,1779371833000,-500.0,0.00039483,120]
[422765573,1779371833000,-500.0,0.00039483,120]
[422765589,1779371834000,-500.0,0.00039483,120]
[422765581,1779371834000,-722.69,0.00039483,120]
[422765580,1779371834000,-722.69,0.00039483,120]
[422765582,1779371834000,-722.69,0.00039483,120]
[422765583,1779371834000,-722.73132196,0.00039483,120]
[422765584,1779371834000,-500.0,0.00039483,120]
[422765585,1779371834000,-500.0,0.00039483,120]
[422765586,1779371834000,-500.0,0.00039483,120]
[422765587,1779371834000,-500.0,0.00039483,120]
[422765579,1779371834000,-722.69,0.00039483,120]
[422765588,1779371834000,-500.0,0.00039483,120]
[422765590,1779371834000,-404.25817775,0.00039483,120]
[422765593,1779371834000,-500.0,0.00039483,120]
[422765592,1779371834000,-500.0,0.00039483,120]
[422765595,1779371834000,-500.0,0.00039483,120]
[422765594,1779371834000,-500.0,0.00039483,120]
[422765596,1779371834000,-554.65540931,0.00039483,120]
[422765597,1779371834000,-500.0,0.00039483,120]
[422765599,1779371834000,-242.28795714,0.00039483,120]
[422765598,1779371834000,-500.0,0.00039483,120]
[422765591,1779371834000,-500.0,0.00039483,120]
[422765605,1779371835000,-375.2272712,0.00039483,120]
[422765606,1779371835000,-500.0,0.00039483,120]
[422765603,1779371835000,-500.0,0.00039483,120]
[422765608,1779371835000,-500.0,0.00039483,120]
[422765601,1779371835000,-500.0,0.00039483,120]
[422765602,1779371835000,-500.0,0.00039483,120]
[422765600,1779371835000,-500.0,0.00039483,120]
[422765604,1779371835000,-500.0,0.00039483,120]
[422765610,1779371835000,-500.0,0.00039483,120]
[422765607,1779371835000,-500.0,0.00039483,120]
[422765611,1779371835000,-500.0,0.00039483,120]
[422765620,1779371835000,-482.84102603,0.00039483,120]
[422765618,1779371835000,-500.0,0.00039483,120]
[422765617,1779371835000,-500.0,0.00039483,120]
[422765615,1779371835000,-500.0,0.00039483,120]
[422765609,1779371835000,-500.0,0.00039483,120]
[422765613,1779371835000,-500.0,0.00039483,120]
[422765614,1779371835000,-189.43634476,0.00039483,120]
[422765612,1779371835000,-500.0,0.00039483,120]
[422765619,1779371835000,-500.0,0.00039483,120]
[422765616,1779371835000,-500.0,0.00039483,120]
[422765622,1779371836000,-500.0,0.00039483,120]
[422765621,1779371836000,-183.07059284,0.00039483,120]
[422765624,1779371836000,-500.0,0.00039483,120]
[422765623,1779371836000,-500.0,0.00039483,120]
[422765626,1779371836000,-500.0,0.00039483,120]
[422765625,1779371836000,-188.17049465,0.00039483,120]
[422765628,1779371836000,-500.65679117,0.00039483,120]
[422765630,1779371836000,-576.26601733,0.00039483,120]
[422765627,1779371836000,-500.0,0.00039483,120]
[422765632,1779371836000,-500.0,0.00039483,120]
[422765638,1779371836000,-169.99021632,0.00039483,120]
[422765639,1779371836000,-500.0,0.00039483,120]
[422765637,1779371836000,-500.0,0.00039483,120]
[422765636,1779371836000,-181.61899403,0.00039483,120]
[422765629,1779371836000,-500.0,0.00039483,120]
[422765635,1779371836000,-187.30694789,0.00039483,120]
[422765633,1779371836000,-500.0,0.00039483,120]
[422765631,1779371836000,-204.05679115,0.00039483,120]
[422765634,1779371836000,-500.0,0.00039483,120]
[422765648,1779371837000,-264.2005522,0.00039483,60]
[422765641,1779371837000,-500.0,0.00039483,120]
[422765643,1779371837000,-500.0,0.00039483,120]
[422765642,1779371837000,-500.0,0.00039483,120]
[422765644,1779371837000,-500.0,0.00039483,120]
[422765645,1779371837000,-500.0,0.00039483,120]
[422765646,1779371837000,-455.02716007,0.00039483,120]
[422765647,1779371837000,-423.84579331,0.00039483,120]
[422765640,1779371837000,-500.0,0.00039483,120]
[422765650,1779371837000,-448.06877033,0.00039483,120]
[422765652,1779371837000,-500.0,0.00039483,120]
[422765658,1779371837000,-500.0,0.00039483,120]
[422765657,1779371837000,-500.0,0.00039483,120]
[422765656,1779371837000,-500.0,0.00039483,120]
[422765649,1779371837000,-500.0,0.00039483,120]
[422765655,1779371837000,-253.5083749,0.00039483,120]
[422765653,1779371837000,-487.02091995,0.00039483,120]
[422765651,1779371837000,-500.0,0.00039483,120]
[422765654,1779371837000,-500.0,0.00039483,120]
[422765666,1779371838000,-500.0,0.00039483,120]
[422765659,1779371838000,-366.32425143,0.00039483,120]
[422765660,1779371838000,-500.0,0.00039483,120]
[422765662,1779371838000,-266.20315554,0.00039483,120]
[422765663,1779371838000,-547.38331413,0.00039483,120]
[422765664,1779371838000,-511.71513546,0.00039483,120]
[422765665,1779371838000,-242.47401731,0.00039483,120]
[422765667,1779371838000,-500.0,0.00039483,120]
[422765661,1779371838000,-509.92341506,0.00039483,120]
[422765669,1779371838000,-500.0,0.00039483,120]
[422765670,1779371838000,-500.0,0.00039483,120]
[422765671,1779371838000,-500.0,0.00039483,120]
[422765672,1779371838000,-500.0,0.00039483,120]
[422765673,1779371838000,-167.3724855,0.00039483,120]
[422765674,1779371838000,-500.0,0.00039483,120]
[422765675,1779371838000,-500.17161827,0.00039483,120]
[422765676,1779371838000,-505.4404738,0.00039483,120]
[422765677,1779371838000,-585.98234047,0.00039483,120]
[422765678,1779371838000,-500.0,0.00039483,120]
[422765668,1779371838000,-500.0,0.00039483,120]
[422765686,1779371839000,-155.45045855,0.00039483,120]
[422765685,1779371839000,-500.0,0.00039483,120]
[422765684,1779371839000,-517.32304681,0.00039483,120]
[422765687,1779371839000,-500.0,0.00039483,120]
[422765682,1779371839000,-500.0,0.00039483,120]
[422765680,1779371839000,-500.0,0.00039483,120]
[422765681,1779371839000,-500.0,0.00039483,120]
[422765683,1779371839000,-500.0,0.00039483,120]
[422765688,1779371839000,-500.0,0.00039483,120]
[422765679,1779371839000,-507.01520422,0.00039483,120]
[422765690,1779371839000,-609.45130169,0.00039483,120]
[422765691,1779371839000,-500.0,0.00039483,120]
[422765692,1779371839000,-500.0,0.00039483,120]
[422765693,1779371839000,-574.75401034,0.00039483,120]
[422765694,1779371839000,-500.0,0.00039483,120]
[422765695,1779371839000,-249.25586264,0.00039483,120]
[422765696,1779371839000,-500.0,0.00039483,120]
[422765697,1779371839000,-367.11074652,0.00039483,120]
[422765689,1779371839000,-2366.1478,0.00039483,120]
[422765698,1779371839000,-500.0,0.00039483,120]
[422765705,1779371840000,-500.0,0.00039483,120]
[422765704,1779371840000,-237.27260352,0.00039483,120]
[422765703,1779371840000,-615.6545909,0.00039483,120]
[422765699,1779371840000,-339.80669051,0.00039483,120]
[422765700,1779371840000,-186.14423565,0.00039483,120]
[422765701,1779371840000,-370.50304433,0.00039483,120]
[422765706,1779371840000,-500.0,0.00039483,120]
[422765702,1779371840000,-500.0,0.00039483,120]
[422765707,1779371840000,-500.0,0.00039483,120]
[422765715,1779371840000,-500.0,0.00039483,120]
[422765709,1779371840000,-500.0,0.00039483,120]
[422765717,1779371840000,-500.0,0.00039483,120]
[422765716,1779371840000,-500.0,0.00039483,120]
[422765714,1779371840000,-500.0,0.00039483,120]
[422765708,1779371840000,-500.0,0.00039483,120]
[422765712,1779371840000,-492.50411159,0.00039483,120]
[422765711,1779371840000,-500.0,0.00039483,120]
[422765710,1779371840000,-500.0,0.00039483,120]
[422765713,1779371840000,-500.0,0.00039483,120]
[422765725,1779371841000,-500.0,0.00039483,120]
[422765719,1779371841000,-228.34850903,0.00039483,120]
[422765720,1779371841000,-500.0,0.00039483,120]
[422765722,1779371841000,-500.0,0.00039483,120]
[422765721,1779371841000,-500.0,0.00039483,120]
[422765723,1779371841000,-345.13444636,0.00039483,120]
[422765724,1779371841000,-500.0,0.00039483,120]
[422765718,1779371841000,-156.52941619,0.00039483,120]
[422765726,1779371841000,-184.73286573,0.00039483,120]
[422765728,1779371841000,-500.0,0.00039483,120]
[422765729,1779371841000,-554.29368334,0.00039483,120]
[422765731,1779371841000,-500.0,0.00039483,120]
[422765732,1779371841000,-500.0,0.00039483,120]
[422765730,1779371841000,-500.0,0.00039483,120]
[422765734,1779371841000,-500.0,0.00039483,120]
[422765733,1779371841000,-500.0,0.00039483,120]
[422765736,1779371841000,-500.0,0.00039483,120]
[422765735,1779371841000,-500.0,0.00039483,120]
[422765727,1779371841000,-500.0,0.00039483,120]
[422765744,1779371842000,-1710.95,0.00039483,120]
[422765743,1779371842000,-1710.95,0.00039483,120]
[422765741,1779371842000,-1710.95,0.00039483,120]
[422765737,1779371842000,-500.0,0.00039483,120]
[422765739,1779371842000,-1710.95,0.00039483,120]
[422765740,1779371842000,-587.89338134,0.00039483,120]
[422765738,1779371842000,-500.0,0.00039483,120]
[422765742,1779371842000,-1710.95,0.00039483,120]
[422765746,1779371842000,-500.0,0.00039483,120]
[422765745,1779371842000,-1710.95,0.00039483,120]
[422765748,1779371842000,-528.3177949,0.00039483,120]
[422765756,1779371842000,-500.0,0.00039483,120]
[422765754,1779371842000,-1710.95,0.00039483,120]
[422765755,1779371842000,-1710.95,0.00039483,120]
[422765752,1779371842000,-1710.95,0.00039483,120]
[422765747,1779371842000,-1710.95,0.00039483,120]
[422765751,1779371842000,-1710.95,0.00039483,120]
[422765750,1779371842000,-1710.95,0.00039483,120]
[422765749,1779371842000,-1710.95,0.00039483,120]
[422765753,1779371842000,-1710.95,0.00039483,120]
[422765766,1779371843000,-1710.95,0.00039483,120]
[422765758,1779371843000,-500.0,0.00039483,120]
[422765759,1779371843000,-1710.95,0.00039483,120]
[422765761,1779371843000,-1710.95,0.00039483,120]
[422765760,1779371843000,-590.94761181,0.00039483,120]
[422765763,1779371843000,-522.71348368,0.00039483,120]
[422765762,1779371843000,-1710.95,0.00039483,120]
[422765765,1779371843000,-1710.95,0.00039483,120]
[422765757,1779371843000,-1710.95,0.00039483,120]
[422765764,1779371843000,-615.0,0.00039483,120]
[422765768,1779371843000,-422.06953164,0.00039483,120]
[422765770,1779371843000,-1710.95,0.00039483,120]
[422765769,1779371843000,-1710.95,0.00039483,120]
[422765771,1779371843000,-1711.00857571,0.00039483,120]
[422765772,1779371843000,-500.0,0.00039483,120]
[422765773,1779371843000,-606.2824588,0.00039483,120]
[422765774,1779371843000,-500.0,0.00039483,120]
[422765775,1779371843000,-609.49759743,0.00039483,120]
[422765776,1779371843000,-500.0,0.00039483,120]
[422765767,1779371843000,-1710.95,0.00039483,120]
[422765784,1779371844000,-500.0,0.00039483,120]
[422765783,1779371844000,-270.90342291,0.00039483,120]
[422765782,1779371844000,-200.90861589,0.00039483,90]
[422765777,1779371844000,-500.0,0.00039483,120]
[422765780,1779371844000,-500.0,0.00039483,120]
[422765779,1779371844000,-304.24837389,0.00039483,120]
[422765778,1779371844000,-500.0,0.00039483,120]
[422765781,1779371844000,-157.61687608,0.00039483,120]
[422765786,1779371844000,-500.0,0.00039483,120]
[422765785,1779371844000,-500.0,0.00039483,120]
[422765788,1779371844000,-536.89751346,0.00039483,120]
[422765787,1779371844000,-500.0,0.00039483,120]
[422765796,1779371844000,-500.0,0.00039483,120]
[422765794,1779371844000,-500.0,0.00039483,70]
[422765793,1779371844000,-440.30479361,0.00039483,90]
[422765795,1779371844000,-207.62018118,0.00039483,70]
[422765791,1779371844000,-500.0,0.00039483,120]
[422765792,1779371844000,-528.10848513,0.00039483,120]
[422765790,1779371844000,-500.0,0.00039483,120]
[422765789,1779371844000,-500.0,0.00039483,120]
[422765797,1779371845000,-212.51226634,0.00039483,120]
[422765799,1779371845000,-223.18092957,0.00039483,120]
[422765798,1779371845000,-552.22023838,0.00039483,120]
[422765801,1779371845000,-500.0,0.00039483,120]
[422765800,1779371845000,-500.0,0.00039483,120]
[422765803,1779371845000,-500.0,0.00039483,120]
[422765805,1779371845000,-150.18032514,0.00039483,120]
[422765804,1779371845000,-601.74055232,0.00039483,120]
[422765802,1779371845000,-500.0,0.00039483,120]
[422765807,1779371845000,-313.91828045,0.00039483,120]
[422765806,1779371845000,-506.15422281,0.00039483,120]
[422765813,1779371845000,-500.0,0.00039483,120]
[422765814,1779371845000,-359.46645512,0.00039483,120]
[422765811,1779371845000,-500.0,0.00039483,120]
[422765815,1779371845000,-397.20989102,0.00039483,120]
[422765809,1779371845000,-500.0,0.00039483,120]
[422765810,1779371845000,-500.0,0.00039483,120]
[422765808,1779371845000,-500.0,0.00039483,120]
[422765812,1779371845000,-500.0,0.00039483,120]
[422765816,1779371846000,-1254.63,0.00039483,120]
[422765819,1779371846000,-1254.63,0.00039483,120]
[422765818,1779371846000,-1254.63,0.00039483,120]
[422765820,1779371846000,-1254.63,0.00039483,120]
[422765817,1779371846000,-1254.63,0.00039483,120]
[422765823,1779371846000,-1254.63,0.00039483,120]
[422765822,1779371846000,-1254.63,0.00039483,120]
[422765825,1779371846000,-1254.63,0.00039483,120]
[422765821,1779371846000,-1254.63,0.00039483,120]
[422765826,1779371846000,-500.0,0.00039483,120]
[422765827,1779371846000,-1254.63,0.00039483,120]
[422765834,1779371846000,-1254.63,0.00039483,120]
[422765835,1779371846000,-500.0,0.00039483,120]
[422765833,1779371846000,-500.0,0.00039483,120]
[422765824,1779371846000,-1254.63,0.00039483,120]
[422765831,1779371846000,-500.0,0.00039483,120]
[422765830,1779371846000,-1254.63,0.00039483,120]
[422765829,1779371846000,-500.0,0.00039483,120]
[422765832,1779371846000,-1254.63,0.00039483,120]
[422765828,1779371846000,-206.72775919,0.00039483,120]
[422765836,1779371847000,-1254.63,0.00039483,120]
[422765837,1779371847000,-542.59972373,0.00039483,120]
[422765838,1779371847000,-627.31,0.00039483,120]
[422765840,1779371847000,-627.31,0.00039483,120]
[422765839,1779371847000,-1254.63,0.00039483,120]
[422765842,1779371847000,-627.31,0.00039483,120]
[422765841,1779371847000,-1254.63,0.00039483,120]
[422765843,1779371847000,-1254.63,0.00039483,120]
[422765846,1779371847000,-303.23554431,0.00039483,120]
[422765844,1779371847000,-627.31,0.00039483,120]
[422765848,1779371847000,-1254.63,0.00039483,120]
[422765847,1779371847000,-627.31,0.00039483,120]
[422765856,1779371847000,-500.0,0.00039483,120]
[422765855,1779371847000,-396.83986705,0.00039483,120]
[422765854,1779371847000,-197.71042859,0.00039483,120]
[422765845,1779371847000,-1254.63,0.00039483,120]
[422765851,1779371847000,-500.0,0.00039483,120]
[422765852,1779371847000,-534.38527719,0.00039483,120]
[422765849,1779371847000,-627.31,0.00039483,120]
[422765850,1779371847000,-1254.63,0.00039483,120]
[422765853,1779371847000,-207.39831063,0.00039483,120]
[422765857,1779371848000,-168.11903295,0.00039483,120]
[422765858,1779371848000,-364.3457917,0.00039483,120]
[422765860,1779371848000,-500.0,0.00039483,120]
[422765859,1779371848000,-500.0,0.00039483,120]
[422765862,1779371848000,-500.0,0.00039483,120]
[422765861,1779371848000,-251.22891586,0.00039483,120]
[422765864,1779371848000,-500.0,0.00039483,120]
[422765863,1779371848000,-500.0,0.00039483,120]
[422765866,1779371848000,-500.0,0.00039483,120]
[422765868,1779371848000,-500.0,0.00039483,120]
[422765867,1779371848000,-500.0,0.00039483,120]
[422765865,1779371848000,-500.0,0.00039483,120]
[422765874,1779371848000,-500.0,0.00039483,120]
[422765875,1779371848000,-500.0,0.00039483,120]
[422765873,1779371848000,-500.0,0.00039483,120]
[422765876,1779371848000,-500.0,0.00039483,120]
[422765872,1779371848000,-500.0,0.00039483,120]
[422765869,1779371848000,-500.0,0.00039483,120]
[422765870,1779371848000,-500.0,0.00039483,120]
[422765871,1779371848000,-500.0,0.00039483,120]
[422765883,1779371849000,-500.0,0.00039483,120]
[422765877,1779371849000,-500.0,0.00039483,120]
[422765878,1779371849000,-500.0,0.00039483,120]
[422765879,1779371849000,-565.69007337,0.00039483,120]
[422765880,1779371849000,-625.40659185,0.00039483,120]
[422765881,1779371849000,-179.09094813,0.00039483,120]
[422765882,1779371849000,-367.99126418,0.00039483,120]
[422765884,1779371849000,-216.79457617,0.00039483,120]
[422765886,1779371849000,-174.41433372,0.00039483,120]
[422765895,1779371849000,-428.82669693,0.00039483,120]
[422765887,1779371849000,-500.0,0.00039483,120]
[422765888,1779371849000,-169.9690021,0.00039483,120]
[422765889,1779371849000,-500.0,0.00039483,120]
[422765890,1779371849000,-500.0,0.00039483,120]
[422765892,1779371849000,-150.49878952,0.00039483,120]
[422765891,1779371849000,-619.61477078,0.00039483,120]
[422765893,1779371849000,-1323.842386,0.00039483,120]
[422765894,1779371849000,-373.01192706,0.00039483,120]
[422765885,1779371849000,-179.22076333,0.00039483,120]
[422765904,1779371850000,-500.0,0.00039483,120]
[422765902,1779371850000,-252.27915585,0.00039483,120]
[422765901,1779371850000,-500.0,0.00039483,120]
[422765899,1779371850000,-500.0,0.00039483,120]
[422765903,1779371850000,-500.0,0.00039483,120]
[422765898,1779371850000,-500.0,0.00039483,120]
[422765897,1779371850000,-500.0,0.00039483,120]
[422765896,1779371850000,-152.27445817,0.00039483,120]
[422765900,1779371850000,-500.0,0.00039483,120]
[422765905,1779371850000,-500.0,0.00039483,120]
[422765906,1779371850000,-500.0,0.00039483,120]
[422765908,1779371850000,-500.0,0.00039483,120]
[422765916,1779371850000,-500.0,0.00039483,120]
[422765914,1779371850000,-500.0,0.00039483,120]
[422765913,1779371850000,-500.0,0.00039483,120]
[422765911,1779371850000,-500.0,0.00039483,120]
[422765915,1779371850000,-500.0,0.00039483,120]
[422765910,1779371850000,-500.0,0.00039483,120]